lending/lending_fUSD_20250218
["ID","MTS","AMOUNT","RATE_DAILY","PERIOD"]
[353547259,1739908237527,-150.0,9.889e-05,2]
[353547260,1739908237537,-448.32482545,9.899e-05,2]
[353547261,1739908237546,-556.1553893,9.899e-05,2]
[353547262,1739908237555,-2002.20784775,9.9e-05,2]
[353547263,1739908237566,-1055.16015072,9.9e-05,2]
[353547264,1739908237576,-150.0,9.909e-05,2]
[353547265,1739908237587,-150.0,9.909e-05,2]
[353547266,1739908237597,-13396.88368848,9.91e-05,2]
[353547267,1739908237606,-150.0,9.918e-05,2]
[353547268,1739908237616,-305.83,9.951e-05,2]
[353547270,1739908237626,-500.0,9.973e-05,2]
[353547271,1739908237635,-500.34795324,9.973e-05,2]
[353547272,1739908237645,-500.0,9.973e-05,2]
[353547273,1739908237654,-933.37,9.999e-05,2]
[353547274,1739908237664,-1203.72502334,9.999e-05,2]
[353547275,1739908237673,-182.0217411,9.999e-05,2]
[353547277,1739908237683,-8227574.36809137,0.0001,2]
[353547279,1739908237694,-3816.60925013,0.0001,2]
[353547281,1739908237706,-14311.79082658,0.0001,2]
[353547322,1739908238042,-19665.85070464,0.0001,2]
[353547398,1739908239762,-1095023.1709311,0.0001,2]
[353547399,1739908239771,-1127.60033307,0.0001,2]
[353547400,1739908239780,-184.50906007,0.0001,2]
[353547401,1739908239790,-163.67677193,0.0001,2]
[353547402,1739908239801,-550.0,0.0001,2]
[353547403,1739908239811,-186.41624089,0.0001,2]
[353547404,1739908239821,-68781.38079207,0.0001,2]
[353547405,1739908239831,-150.0,0.0001,2]
[353547406,1739908239841,-150.0,0.0001,2]
[353547407,1739908239850,-2696.52633,0.0001,2]
[353547408,1739908239859,-422.28016132,0.0001,2]
[353547409,1739908239870,-319.2553913,0.0001,2]
[353547410,1739908239879,-159.0,0.0001,3]
[353547411,1739908239889,-7390.73238462,0.0001,2]
[353547412,1739908239898,-1155.39397048,0.0001,2]
[353547413,1739908239908,-1155.39397048,0.0001,2]
[353547414,1739908239918,-1155.39397048,0.0001,2]
[353547415,1739908239927,-1000.0,0.00010018,2]
[353547416,1739908239937,-181.12,0.00010096,2]
[353547417,1739908239947,-933.37,0.00010136,2]
[353547418,1739908239957,-150.0,0.00010144,2]
[353547419,1739908239966,-500.0,0.00010144,2]
[353547420,1739908239976,-500.0,0.00010144,2]
[353547421,1739908239986,-150.0,0.00010144,2]
[353547422,1739908239997,-423.97644729,0.00010218,2]
[353547423,1739908240009,-933.37,0.00010273,2]
[353547424,1739908240018,-180.49,0.00010303,2]
[353547425,1739908240029,-500.0,0.00010366,2]
[353547426,1739908240040,-933.37,0.0001041,2]
[353547427,1739908240050,-423.9764473,0.00010473,2]
[353547428,1739908240059,-1000.0,0.00010521,2]
[353547429,1739908240069,-933.37,0.00010547,2]
[353547430,1739908240080,-170.77,0.00010607,2]
[353547432,1739908240092,-585.66,0.00010648,2]
[353547434,1739908240101,-933.37,0.00010684,2]
[353547436,1739908240112,-2000.0,0.00010751,2]
[353547437,1739908240121,-1153.9,0.00010752,2]
[353547438,1739908240131,-159.41,0.00010752,2]
[353547440,1739908240140,-1058.88,0.00010778,2]
[353547442,1739908240150,-172.67,0.00010819,2]
[353547444,1739908240158,-933.37,0.00010821,2]
[353547446,1739908240167,-180.49,0.00010875,2]
[353547448,1739908240176,-255.0,0.000109,2]
[353547450,1739908240185,-933.37,0.00010958,2]
[353547452,1739908240195,-150.0,0.00010959,2]
[353547454,1739908240204,-816.78,0.00010959,2]
[353547456,1739908240213,-933.37,0.00011095,2]
[353547458,1739908240223,-23602.71574,0.00011099,2]
[353547460,1739908240232,-1000.0,0.00011131,2]
[353547462,1739908240242,-933.37,0.00011232,2]
[353547464,1739908240251,-933.37,0.00011369,2]
[353547466,1739908240261,-170.77,0.00011416,2]
[353547467,1739908240271,-180.49,0.00011447,2]
[353547469,1739908240280,-933.37,0.00011506,2]
[353547471,1739908240290,-784.19105783,0.00011522,2]
[353547473,1739908240299,-933.37,0.00011643,2]
[353547475,1739908240308,-500.0,0.00011753,2]
[353547477,1739908240318,-666.0,0.00011778,2]
[353547480,1739908240328,-300.0,0.00011778,2]
[353547482,1739908240338,-933.37,0.0001178,2]
[353547483,1739908240347,-162.36359636,0.000119,2]
[353547485,1739908240356,-933.37,0.00011917,2]
[353547487,1739908240365,-433.0,0.0001199,2]
[353547489,1739908240375,-180.49,0.0001202,2]
[353547491,1739908240384,-250.0,0.00012045,2]
[353547493,1739908240394,-300.0,0.00012054,2]
[353547495,1739908240404,-666.0,0.00012054,2]
[353547497,1739908240413,-933.37,0.00012054,2]
[353547499,1739908240422,-45427.9,0.00012055,2]
[353547501,1739908240432,-1153.9,0.00012096,2]
[353547503,1739908240442,-933.37,0.00012191,2]
[353547505,1739908240452,-1000.0,0.00012244,2]
[353547507,1739908240461,-933.37,0.00012328,2]
[353547509,1739908240471,-2696.52633,0.000124,2]
[353547511,1739908240481,-933.37,0.00012465,2]
[353547513,1739908240490,-180.49,0.00012592,2]
[353547515,1739908240502,-933.37,0.00012602,2]
[353547517,1739908240511,-17267.92,0.00012603,2]
[353547519,1739908240520,-933.37,0.00012739,2]
[353547521,1739908240529,-933.37,0.00012876,2]
[353547523,1739908240539,-585.66,0.00012912,2]
[353547525,1739908240548,-933.37,0.00013013,2]
[353547527,1739908240558,-933.41410148,0.0001315,2]
[353547529,1739908240567,-180.49,0.00013165,2]
[353547531,1739908240577,-556.15538927,0.00013166,2]
[353547533,1739908240586,-555.0,0.00013189,2]
[353547535,1739908240595,-1000.0,0.00013357,2]
[353547537,1739908240605,-300.0,0.00013378,2]
[353547539,1739908240614,-300.0,0.00013379,2]
[353547541,1739908240623,-300.0,0.00013379,2]
[353547543,1739908240633,-666.0,0.00013379,2]
[353547545,1739908240642,-131205.9735212,0.0001338,3]
[353547547,1739908240652,-14259.0,0.000134,2]
[353547549,1739908240661,-1153.9,0.0001344,2]
[353547551,1739908240670,-580.19323216,0.000136,2]
[353547553,1739908240679,-159.6313451,0.000136,2]
[353547555,1739908240688,-156.344404,0.00013698,2]
[353547557,1739908240697,-178.332284,0.00013698,2]
[353547559,1739908240706,-207.868762,0.00013698,2]
[353547561,1739908240715,-163.780804,0.00013698,2]
[353547563,1739908240725,-157.796925,0.00013698,2]
[353547565,1739908240734,-151.0,0.00013699,2]
[353547567,1739908240743,-4000.0,0.00013699,2]
[353547569,1739908240752,-167.41,0.00013699,2]
[353547571,1739908240762,-200.0,0.00013699,2]
[353547573,1739908240771,-241.36307771,0.00013699,2]
[353547575,1739908240780,-500.0,0.00013699,2]
[353547577,1739908240790,-180.49,0.00013737,2]
[353547579,1739908240799,-5552.0,0.000138,3]
[353547581,1739908240809,-15386.85347222,0.000139,2]
[353547583,1739908240818,-500.0,0.00014175,2]
[353547585,1739908240827,-178.332284,0.00014191,2]
[353547587,1739908240836,-207.868762,0.00014191,2]
[353547589,1739908240846,-5552.0,0.000142,5]
[353547591,1739908240854,-500.0,0.00014225,2]
[353547593,1739908240863,-500.0,0.00014225,2]
[353547595,1739908240872,-1000.0,0.00014247,2]
[353547597,1739908240881,-180.49,0.00014309,2]
[353547599,1739908240890,-6040.10787418,0.000146,2]
[353547601,1739908240899,-1000.0,0.00014723,2]
[353547603,1739908240909,-316.38713581,0.00014773,2]
[353547605,1739908240918,-1153.9,0.00014784,2]
[353547607,1739908240926,-320.45093159,0.00014799,2]
[353547608,1739908240935,-959.45760132,0.000148,3]
[353547628,1739908241111,-180.49,0.00014882,2]
[353547630,1739908241120,-300.0,0.00014899,2]
[353547632,1739908241129,-666.0,0.00014899,2]
[353547634,1739908241138,-368153.818522,0.000149,3]
[353547636,1739908241148,-2696.52633,0.000149,2]
[353547638,1739908241157,-422.28016132,0.000149,2]
[353547640,1739908241167,-7390.73238462,0.000149,2]
[353547642,1739908241176,-4956.0,0.00015,2]
[353547644,1739908241185,-166.1,0.00015068,2]
[353547646,1739908241194,-1084.57,0.00015068,2]
[353547648,1739908241203,-150.0,0.00015068,2]
[353547650,1739908241214,-1058.88,0.00015089,2]
[353547652,1739908241223,-585.66,0.00015176,2]
[353547654,1739908241232,-1500.0,0.00015248,2]
[353547656,1739908241242,-180.49,0.00015454,2]
[353547658,1739908241251,-265.34,0.00015516,2]
[353547660,1739908241261,-500.36210924,0.00015725,2]
[353547662,1739908241271,-1153.9,0.00016128,2]
[353547664,1739908241280,-182.71,0.00016437,2]
[353547666,1739908241290,-150.0,0.00016438,2]
[353547668,1739908241300,-150.0,0.00016438,2]
[353547670,1739908241310,-556.15538927,0.00016533,2]
[353547672,1739908241320,-2000.0,0.00016546,2]
[353547674,1739908241329,-1457.0,0.00016566,2]
[353547676,1739908241339,-234.3,0.00016658,30]
[353547678,1739908241348,-1530.83618234,0.000168,2]
[353547680,1739908241357,-150.0,0.00017071,2]
[353547682,1739908241366,-1084.57,0.0001726,4]
[353547684,1739908241375,-2696.52633,0.000174,2]
[353547686,1739908241384,-585.66,0.0001744,2]
[353547688,1739908241393,-150.0,0.00017703,2]
[353547690,1739908241403,-300.0,0.00017749,2]
[353547692,1739908241412,-668.57353053,0.00017749,2]
[353547694,1739908241421,-73813.0,0.0001775,2]
[353547695,1739908241432,-200.981,0.00017806,2]
[353547697,1739908241441,-401.10973839,0.00018,5]
[353547699,1739908241451,-1137.83922105,0.00018,2]
[353547701,1739908241460,-1701.9989954,0.000181,2]
[353547703,1739908241469,-765.38398416,0.000181,2]
[353547705,1739908241478,-150.0,0.00018335,2]
[353547707,1739908241487,-162.5,0.00018593,2]
[353547709,1739908241497,-154.59,0.000186,2]
[353547711,1739908241506,-1704.90290037,0.00018676,2]
[353547713,1739908241515,-2079.82757127,0.000187,5]
[353547715,1739908241524,-446.1,0.00018818,2]
[353547717,1739908241534,-877.31,0.00018818,2]
[353547719,1739908241543,-775.59,0.00018818,2]
[353547721,1739908241553,-300.0,0.00018818,2]
[353547723,1739908241562,-703.08,0.00018818,2]
[353547726,1739908241571,-1213.52624891,0.0001888,7]
[353547727,1739908241580,-997.56885048,0.0001888,2]
[353547730,1739908241591,-964.57,0.00018944,2]
[353547732,1739908241600,-150.0,0.00018967,2]
[353547734,1739908241610,-300.0,0.00018999,2]
[353547736,1739908241619,-5000.83222616,0.00019,4]
[353547738,1739908241628,-31215.02296138,0.00019,3]
[353547740,1739908241638,-961.61,0.00019,2]
[353547742,1739908241647,-97978.39402481,0.00019,2]
[353547744,1739908241657,-341.16389283,0.0001901,7]
[353547746,1739908241666,-1000.0,0.0001902,2]
[353547748,1739908241675,-2026.0,0.00019021,2]
[353547750,1739908241685,-1274.0,0.00019021,2]
[353547752,1739908241695,-569.0,0.00019021,2]
[353547754,1739908241704,-638.0,0.00019021,2]
[353547756,1739908241715,-1861.78,0.00019021,2]
[353547758,1739908241725,-908.0,0.00019021,2]
[353547760,1739908241734,-784.0,0.00019021,2]
[353547762,1739908241743,-1266.0,0.00019021,2]
[353547764,1739908241752,-4030.0,0.00019021,2]
[353547766,1739908241762,-562.896,0.00019021,2]
[353547768,1739908241771,-204.026,0.00019021,2]
[353547770,1739908241780,-1009.0,0.00019021,2]
[353547772,1739908241790,-3917.577,0.00019021,2]
[353547773,1739908241799,-221.0791,0.00019175,2]
[353547775,1739908241809,-1000.0,0.00019178,7]
[353547777,1739908241818,-200.0,0.000192,2]
[353547779,1739908241828,-500.0,0.00019223,2]
[353547781,1739908241838,-234.3,0.00019242,30]
[353547783,1739908241847,-500.0,0.00019323,2]
[353547785,1739908241857,-300.0,0.00019338,2]
[353547787,1739908241866,-640.23,0.00019339,2]
[353547789,1739908241876,-1359.62,0.00019339,2]
[353547791,1739908241885,-299.99,0.00019339,7]
[353547793,1739908241895,-999.99,0.00019339,2]
[353547796,1739908241904,-9999.99,0.00019339,2]
[353547798,1739908241914,-852.98,0.00019339,2]
[353547800,1739908241923,-3493.25,0.00019339,2]
[353547802,1739908241933,-697.48,0.00019339,2]
[353547804,1739908241942,-9999.99,0.00019339,2]
[353547806,1739908241951,-481.0,0.00019339,2]
[353547808,1739908241960,-150.99,0.00019339,2]
[353547809,1739908241970,-6130.15,0.00019339,2]
[353547811,1739908241980,-150.99,0.00019339,2]
[353547813,1739908241989,-2557.84,0.00019359,7]
[353547816,1739908242001,-2557.84,0.00019359,7]
[353547818,1739908242011,-2557.84,0.00019359,7]
[353547820,1739908242020,-2557.84,0.00019359,7]
[353547821,1739908242029,-256.09719102,0.00019415,2]
[353547823,1739908242039,-500.0,0.00019423,2]
[353547825,1739908242049,-5446.81571306,0.00019441,4]
[353547827,1739908242058,-1000.0,0.00019452,7]
[353547829,1739908242067,-1084.57,0.00019452,6]
[353547831,1739908242078,-500.0,0.000195,2]
[353547833,1739908242088,-500.0,0.000195,2]
[353547835,1739908242097,-500.0,0.000195,2]
[353547837,1739908242106,-500.0,0.000195,2]
[353547839,1739908242115,-500.0,0.000195,2]
[353547841,1739908242125,-500.0,0.000195,2]
[353547843,1739908242134,-500.0,0.000195,2]
[353547845,1739908242144,-500.0,0.000195,2]
[353547847,1739908242154,-500.0,0.000195,2]
[353547849,1739908242163,-500.0,0.000195,2]
[353547851,1739908242172,-700.0,0.000195,2]
[353547853,1739908242183,-500.0,0.000195,2]
[353547855,1739908242192,-500.0,0.000195,2]
[353547857,1739908242202,-500.0,0.000195,2]
[353547859,1739908242212,-500.0,0.000195,2]
[353547861,1739908242222,-500.0,0.000195,2]
[353547863,1739908242231,-500.0,0.000195,2]
[353547865,1739908242240,-500.0,0.000195,2]
[353547867,1739908242250,-500.0,0.000195,2]
[353547869,1739908242260,-500.0,0.000195,2]
[353547871,1739908242269,-500.0,0.000195,2]
[353547873,1739908242279,-500.0,0.000195,2]
[353547875,1739908242288,-500.0,0.000195,2]
[353547877,1739908242297,-500.0,0.000195,2]
[353547880,1739908242306,-500.0,0.000195,2]
[353547882,1739908242315,-500.0,0.000195,2]
[353547885,1739908242325,-500.0,0.000195,2]
[353547888,1739908242334,-500.0,0.000195,2]
[353547891,1739908242344,-500.0,0.000195,2]
[353547893,1739908242353,-150.0,0.0001951,2]
[353547895,1739908242362,-500.0,0.00019523,2]
[353547897,1739908242371,-150.0,0.00019562,2]
[353547899,1739908242381,-2060.07747414,0.00019593,2]
[353547901,1739908242390,-2060.07747403,0.00019593,2]
[353547903,1739908242400,-543.811595,0.00019599,2]
[353547905,1739908242409,-150.0,0.000196,2]
[353547907,1739908242419,-20000.0,0.000196,2]
[353547909,1739908242428,-3291.8631489,0.0001961,2]
[353547912,1739908242437,-152.0,0.00019621,3]
[353547914,1739908242447,-500.0,0.00019623,2]
[353547917,1739908242456,-336.85547,0.00019627,7]
[353547919,1739908242465,-2557.84,0.00019633,7]
[353547922,1739908242475,-2557.84,0.00019633,7]
[353547925,1739908242484,-1973.16,0.0001964,2]
[353547927,1739908242494,-439.14,0.0001964,2]
[353547930,1739908242503,-150.0,0.0001964,2]
[353547932,1739908242512,-336.62,0.0001964,2]
[353547935,1739908242522,-150.0,0.0001964,2]
[353547937,1739908242531,-237.99,0.0001964,2]
[353547939,1739908242540,-150.0,0.0001964,2]
[353547941,1739908242549,-439.14,0.0001964,2]
[353547943,1739908242558,-438.9,0.0001964,2]
[353547945,1739908242568,-6000.0,0.00019648,3]
[353547947,1739908242577,-150.0,0.00019664,2]
[353547949,1739908242588,-636.25782254,0.00019673,2]
[353547951,1739908242597,-150.0,0.00019699,2]
[353547953,1739908242606,-300.0,0.00019699,2]
[353547955,1739908242617,-110308.14486863,0.000197,2]
[353547957,1739908242627,-3000.0,0.000197,2]
[353547960,1739908242637,-585.66,0.00019704,2]
[353547961,1739908242647,-500.0,0.00019723,2]
[353547964,1739908242657,-303.2840554,0.00019725,2]
[353547965,1739908242667,-500.0,0.00019726,3]
[353547966,1739908242676,-500.0,0.00019726,3]
[353547967,1739908242686,-500.0,0.00019726,3]
[353547968,1739908242695,-500.0,0.00019726,3]
[353547969,1739908242706,-500.0,0.00019726,3]
[353547970,1739908242715,-500.0,0.00019726,3]
[353547971,1739908242725,-500.0,0.00019726,3]
[353547972,1739908242735,-500.0,0.00019726,3]
[353547973,1739908242744,-500.0,0.00019726,3]
[353547974,1739908242753,-500.0,0.00019726,3]
[353547975,1739908242763,-500.0,0.00019726,3]
[353547977,1739908242772,-500.0,0.00019726,3]
[353547978,1739908242782,-500.0,0.00019726,3]
[353547980,1739908242791,-500.0,0.00019726,3]
[353547982,1739908242800,-500.0,0.00019726,3]
[353547984,1739908242810,-500.0,0.00019726,3]
[353547986,1739908242820,-500.0,0.00019726,3]
[353547988,1739908242830,-500.0,0.00019726,3]
[353547990,1739908242840,-500.0,0.00019726,3]
[353547992,1739908242849,-500.0,0.00019726,3]
[353547994,1739908242858,-500.0,0.00019726,3]
[353547996,1739908242867,-500.0,0.00019726,3]
[353547998,1739908242877,-500.0,0.00019726,3]
[353548000,1739908242885,-500.0,0.00019726,3]
[353548002,1739908242895,-500.0,0.00019726,3]
[353548004,1739908242904,-500.0,0.00019726,3]
[353548006,1739908242913,-500.0,0.00019726,3]
[353548009,1739908242923,-500.0,0.00019726,3]
[353548012,1739908242932,-319.33114027,0.00019726,3]
[353548015,1739908242941,-500.0,0.00019726,3]
[353548017,1739908242951,-500.0,0.00019726,3]
[353548019,1739908242961,-500.0,0.00019726,3]
[353548021,1739908242970,-500.0,0.00019726,3]
[353548023,1739908242979,-500.0,0.00019726,3]
[353548025,1739908242989,-500.0,0.00019726,3]
[353548027,1739908242999,-500.0,0.00019726,3]
[353548028,1739908243008,-500.0,0.00019726,3]
[353548031,1739908243019,-504.48055057,0.00019726,3]
[353548032,1739908243028,-500.0,0.00019726,3]
[353548035,1739908243039,-500.0,0.00019726,3]
[353548037,1739908243048,-500.0,0.00019726,3]
[353548038,1739908243058,-500.0,0.00019726,3]
[353548041,1739908243073,-500.0,0.00019726,3]
[353548042,1739908243083,-500.0,0.00019726,3]
[353548045,1739908243096,-500.0,0.00019726,3]
[353548046,1739908243109,-500.0,0.00019726,3]
[353548048,1739908243118,-500.0,0.00019726,3]
[353548050,1739908243128,-500.0,0.00019726,3]
[353548052,1739908243137,-500.0,0.00019726,3]
[353548054,1739908243149,-500.0,0.00019726,3]
[353548056,1739908243159,-500.0,0.00019726,3]
[353548058,1739908243169,-500.0,0.00019726,3]
[353548060,1739908243178,-500.0,0.00019726,3]
[353548062,1739908243191,-500.0,0.00019726,3]
[353548064,1739908243200,-631.82101009,0.00019726,3]
[353548066,1739908243209,-500.0,0.00019726,3]
[353548068,1739908243218,-500.0,0.00019726,3]
[353548070,1739908243228,-500.0,0.00019726,3]
[353548072,1739908243237,-500.0,0.00019726,3]
[353548074,1739908243246,-500.0,0.00019726,3]
[353548076,1739908243256,-500.0,0.00019726,3]
[353548078,1739908243265,-500.0,0.00019726,3]
[353548080,1739908243275,-500.0,0.00019726,3]
[353548082,1739908243284,-500.0,0.00019726,3]
[353548084,1739908243293,-503.64563473,0.00019726,3]
[353548086,1739908243303,-500.0,0.00019726,3]
[353548088,1739908243313,-500.0,0.00019726,3]
[353548090,1739908243323,-500.0,0.00019726,3]
[353548092,1739908243333,-500.0,0.00019726,3]
[353548094,1739908243343,-505.19088532,0.00019726,3]
[353548096,1739908243352,-500.0,0.00019726,3]
[353548098,1739908243362,-180.66616947,0.00019726,3]
[353548100,1739908243371,-500.0,0.00019726,3]
[353548102,1739908243380,-500.0,0.00019726,3]
[353548104,1739908243390,-500.0,0.00019726,3]
[353548106,1739908243399,-500.0,0.00019726,3]
[353548108,1739908243408,-500.0,0.00019726,3]
[353548110,1739908243417,-500.0,0.00019726,3]
[353548112,1739908243427,-500.0,0.00019726,3]
[353548114,1739908243436,-500.0,0.00019726,3]
[353548116,1739908243446,-500.0,0.00019726,3]
[353548118,1739908243455,-504.67975628,0.00019726,3]
[353548120,1739908243464,-500.0,0.00019726,3]
[353548122,1739908243475,-342.67249817,0.00019726,3]
[353548124,1739908243484,-500.0,0.00019726,3]
[353548126,1739908243494,-392.31,0.00019726,3]
[353548128,1739908243503,-500.0,0.00019726,3]
[353548130,1739908243512,-500.0,0.00019726,3]
[353548132,1739908243522,-500.0,0.00019726,3]
[353548134,1739908243531,-1000.0,0.00019726,7]
[353548136,1739908243541,-500.0,0.00019726,3]
[353548138,1739908243551,-495.06,0.00019726,3]
[353548140,1739908243562,-500.0,0.00019726,3]
[353548142,1739908243572,-200.53,0.00019726,3]
[353548144,1739908243582,-500.0,0.00019726,3]
[353548146,1739908243593,-613.71,0.00019726,3]
[353548148,1739908243608,-500.0,0.00019726,3]
[353548150,1739908243619,-500.0,0.00019726,3]
[353548152,1739908243627,-502.87109302,0.00019726,3]
[353548154,1739908243637,-503.46935905,0.00019726,3]
[353548156,1739908243646,-560.58,0.00019726,3]
[353548157,1739908243657,-500.0,0.00019726,3]
[353548159,1739908243667,-500.0,0.00019726,3]
[353548162,1739908243678,-500.0,0.00019726,3]
[353548164,1739908243687,-500.0,0.00019726,3]
[353548166,1739908243697,-502.93071308,0.00019726,3]
[353548168,1739908243707,-500.0,0.00019726,3]
[353548170,1739908243716,-500.81906217,0.00019726,3]
[353548172,1739908243726,-500.0,0.00019726,3]
[353548173,1739908243736,-500.0,0.00019726,3]
[353548176,1739908243746,-500.0,0.00019726,3]
[353548178,1739908243757,-501.25629161,0.00019726,3]
[353548180,1739908243767,-500.0,0.00019726,3]
[353548182,1739908243776,-500.0,0.00019726,3]
[353548184,1739908243785,-500.0,0.00019726,3]
[353548186,1739908243795,-500.0,0.00019726,3]
[353548187,1739908243804,-467.79,0.00019726,3]
[353548189,1739908243814,-501.69376639,0.00019726,3]
[353548192,1739908243823,-500.0,0.00019726,3]
[353548193,1739908243833,-504.88701225,0.00019726,3]
[353548196,1739908243845,-161.13861279,0.00019726,3]
[353548197,1739908243855,-500.0,0.00019726,3]
[353548200,1739908243865,-500.0,0.00019726,3]
[353548202,1739908243875,-500.0,0.00019726,3]
[353548204,1739908243884,-601.26,0.00019726,3]
[353548205,1739908243894,-500.0,0.00019726,3]
[353548207,1739908243904,-500.0,0.00019726,3]
[353548209,1739908243914,-500.0,0.00019726,3]
[353548211,1739908243923,-500.0,0.00019726,3]
[353548213,1739908243933,-500.0,0.00019726,3]
[353548215,1739908243942,-500.0,0.00019726,3]
[353548217,1739908243952,-300.45379814,0.00019726,3]
[353548219,1739908243962,-500.0,0.00019726,3]
[353548221,1739908243972,-301.18006706,0.00019726,3]
[353548223,1739908243981,-510.21,0.00019726,3]
[353548225,1739908243991,-513.16,0.00019726,3]
[353548227,1739908244003,-477.1348724,0.00019726,3]
[353548229,1739908244012,-500.0,0.00019726,3]
[353548231,1739908244022,-500.0,0.00019726,3]
[353548233,1739908244034,-500.0,0.00019726,3]
[353548235,1739908244044,-238.52,0.00019726,3]
[353548237,1739908244054,-500.0,0.00019726,3]
[353548239,1739908244064,-500.0,0.00019726,3]
[353548241,1739908244075,-430.32565235,0.00019726,3]
[353548243,1739908244085,-500.0,0.00019726,3]
[353548245,1739908244096,-517.73144499,0.00019726,3]
[353548247,1739908244105,-500.0,0.00019726,3]
[353548249,1739908244115,-500.0,0.00019726,3]
[353548251,1739908244125,-500.9487653,0.00019726,3]
[353548253,1739908244134,-500.0,0.00019726,3]
[353548255,1739908244143,-500.0,0.00019726,3]
[353548257,1739908244153,-500.0,0.00019726,3]
[353548259,1739908244163,-500.0,0.00019726,3]
[353548261,1739908244172,-500.0,0.00019726,3]
[353548263,1739908244182,-500.84275394,0.00019726,3]
[353548265,1739908244191,-500.0,0.00019726,3]
[353548267,1739908244201,-500.0,0.00019726,3]
[353548269,1739908244211,-500.0,0.00019726,3]
[353548271,1739908244220,-500.0,0.00019726,3]
[353548273,1739908244229,-500.0,0.00019726,3]
[353548275,1739908244239,-500.0,0.00019726,3]
[353548277,1739908244250,-500.0,0.00019726,3]
[353548279,1739908244260,-500.0,0.00019726,3]
[353548281,1739908244270,-500.0,0.00019726,3]
[353548283,1739908244280,-500.0,0.00019726,3]
[353548285,1739908244290,-500.0,0.00019726,3]
[353548287,1739908244299,-278.54605583,0.00019726,3]
[353548289,1739908244308,-504.75484078,0.00019726,3]
[353548291,1739908244318,-500.0,0.00019726,3]
[353548293,1739908244327,-500.0,0.00019726,3]
[353548295,1739908244337,-200.0,0.00019726,3]
[353548297,1739908244347,-506.26863499,0.00019726,3]
[353548299,1739908244356,-305.6508584,0.00019726,3]
[353548301,1739908244365,-503.53328344,0.00019726,3]
[353548303,1739908244374,-500.0,0.00019726,3]
[353548305,1739908244383,-500.0,0.00019726,3]
[353548307,1739908244392,-247.63183582,0.00019726,3]
[353548309,1739908244401,-500.0,0.00019726,3]
[353548311,1739908244411,-500.0,0.00019726,3]
[353548313,1739908244420,-500.0,0.00019726,3]
[353548315,1739908244429,-500.0,0.00019726,3]
[353548317,1739908244439,-500.0,0.00019726,3]
[353548318,1739908244448,-503.8049377,0.00019726,3]
[353548320,1739908244457,-500.0,0.00019726,3]
[353548322,1739908244467,-500.0,0.00019726,3]
[353548324,1739908244476,-366.00870949,0.00019726,3]
[353548326,1739908244486,-504.9715667,0.00019726,3]
[353548328,1739908244496,-503.06291679,0.00019726,3]
[353548330,1739908244504,-500.0,0.00019726,3]
[353548332,1739908244514,-500.0,0.00019726,3]
[353548334,1739908244523,-500.0,0.00019726,3]
[353548336,1739908244532,-500.0,0.00019726,3]